[Event "Titled Tuesday Blitz November 07 Early 2023"]
[White "Mindlin, Alon"]
[Black "Gavrilov, Maxim"]
[WhiteFideId "2800071"]
[BlackFideId "24271454"]
[WhiteElo "2756"]
[BlackElo "2547"]
[Result "0-1"]
[Round "4"]
[TimeControl "180+1"]
[Date "2023.11.07"]
[WhiteClock "0:00:12"]
[BlackClock "0:00:10"]
[Board "68"]

1. e4 {[%clk 0:03:00]}  c5 {[%clk 0:02:59]} 2. c3 {[%clk 0:03:01]}  d5 {[%clk 0:02:58]} 3. exd5 {[%clk 0:03:01]}  Qxd5 {[%clk 0:02:59]} 4. d4 {[%clk 0:03:02]}  Nc6 {[%clk 0:02:59]} 5. Nf3 {[%clk 0:03:02]}  Bg4 {[%clk 0:02:59]} 6. Be2 {[%clk 0:03:02]}  e6 {[%clk 0:02:59]} 7. h3 {[%clk 0:03:01]}  Bh5 {[%clk 0:02:58]} 8. O-O {[%clk 0:03:01]}  Nf6 {[%clk 0:02:58]} 9. Be3 {[%clk 0:02:37]}  cxd4 {[%clk 0:02:57]} 10. cxd4 {[%clk 0:02:37]}  Be7 {[%clk 0:02:58]} 11. Nc3 {[%clk 0:02:38]}  Qd6 {[%clk 0:02:58]} 12. Qb3 {[%clk 0:02:37]}  O-O {[%clk 0:02:57]} 13. Rac1 {[%clk 0:02:29]}  a6 {[%clk 0:02:55]} 14. Na4 {[%clk 0:02:19]}  Nb4 {[%clk 0:02:16]} 15. Rfd1 {[%clk 0:02:08]}  Nbd5 {[%clk 0:02:09]} 16. Qxb7 {[%clk 0:02:03]}  Nxe3 {[%clk 0:02:00]} 17. fxe3 {[%clk 0:02:03]}  Nd5 {[%clk 0:02:00]} 18. Kf2 {[%clk 0:01:57]}  Bxf3 {[%clk 0:01:25]} 19. Bxf3 {[%clk 0:01:56]}  Bh4+ {[%clk 0:01:26]} 20. Ke2 {[%clk 0:01:51]}  Rab8 {[%clk 0:01:22]} 21. Qc6 {[%clk 0:01:47]}  Qg3 {[%clk 0:01:19]} 22. Rf1 {[%clk 0:01:38]}  Bg5 {[%clk 0:01:02]} 23. Rc3 {[%clk 0:00:59]}  Nxc3+ {[%clk 0:00:58]} 24. Qxc3 {[%clk 0:01:00]}  Rfc8 {[%clk 0:00:55]} 25. Nc5 {[%clk 0:01:01]}  Be7 {[%clk 0:00:45]} 26. b4 {[%clk 0:00:58]}  e5 {[%clk 0:00:28]} 27. Bd5 {[%clk 0:00:51]}  exd4 {[%clk 0:00:26]} 28. Qxd4 {[%clk 0:00:45]}  Bxc5 {[%clk 0:00:17]} 29. bxc5 {[%clk 0:00:39]}  Rc7 {[%clk 0:00:17]} 30. c6 {[%clk 0:00:32]}  Kh8 {[%clk 0:00:13]} 31. Rf4 {[%clk 0:00:29]}  f6 {[%clk 0:00:12]} 32. Bf3 {[%clk 0:00:25]}  Rcc8 {[%clk 0:00:11]} 33. Qd7 {[%clk 0:00:18]}  Rd8 {[%clk 0:00:10]} 34. c7 {[%clk 0:00:18]}  Rb2+ {[%clk 0:00:10]} 35. Kd3 {[%clk 0:00:13]}  Rxd7+ {[%clk 0:00:10]} 36. Kc3 {[%clk 0:00:14]}  Rxc7+ {[%clk 0:00:10]} 37. Kxb2 {[%clk 0:00:12]}  Qf2+ {[%clk 0:00:10]} 0-1


[Site "https://www.chess.com"]

[Event "Titled Tuesday Blitz November 07 Early 2023"]
[White "Mihailidis, Anastasios"]
[Black "Rosen, Eric"]
[WhiteFideId "4205588"]
[BlackFideId "2032562"]
[WhiteElo "2538"]
[BlackElo "2745"]
[Result "0-1"]
[Round "4"]
[TimeControl "180+1"]
[Date "2023.11.07"]
[WhiteClock "0:00:00"]
[BlackClock "0:00:23"]
[Board "69"]

1. e4 {[%clk 0:03:00]}  c5 {[%clk 0:03:00]} 2. Nf3 {[%clk 0:03:00]}  e6 {[%clk 0:03:00]} 3. c4 {[%clk 0:02:59]}  Nc6 {[%clk 0:02:57]} 4. Nc3 {[%clk 0:02:59]}  Nd4 {[%clk 0:02:57]} 5. Nxd4 {[%clk 0:02:55]}  cxd4 {[%clk 0:02:58]} 6. Ne2 {[%clk 0:02:55]}  e5 {[%clk 0:02:59]} 7. d3 {[%clk 0:02:55]}  Nf6 {[%clk 0:02:45]} 8. g3 {[%clk 0:02:49]}  h5 {[%clk 0:02:42]} 9. h4 {[%clk 0:02:48]}  b5 {[%clk 0:02:24]} 10. b3 {[%clk 0:02:29]}  Ng4 {[%clk 0:02:16]} 11. Bg2 {[%clk 0:01:49]}  bxc4 {[%clk 0:02:07]} 12. bxc4 {[%clk 0:01:46]}  Bb4+ {[%clk 0:02:07]} 13. Bd2 {[%clk 0:01:42]}  Qa5 {[%clk 0:02:04]} 14. Bxb4 {[%clk 0:01:14]}  Qxb4+ {[%clk 0:02:05]} 15. Kf1 {[%clk 0:01:13]}  Rb8 {[%clk 0:02:06]} 16. Qc2 {[%clk 0:00:57]}  d6 {[%clk 0:01:55]} 17. a3 {[%clk 0:00:46]}  Qb2 {[%clk 0:01:42]} 18. Rc1 {[%clk 0:00:36]}  O-O {[%clk 0:01:30]} 19. Qxb2 {[%clk 0:00:22]}  Rxb2 {[%clk 0:01:31]} 20. Re1 {[%clk 0:00:18]}  Bd7 {[%clk 0:01:24]} 21. Bf3 {[%clk 0:00:15]}  Rd2 {[%clk 0:01:19]} 22. Kg2 {[%clk 0:00:13]}  Rxd3 {[%clk 0:01:13]} 23. Nc1 {[%clk 0:00:12]}  Rxa3 {[%clk 0:01:11]} 24. Re2 {[%clk 0:00:10]}  Rb8 {[%clk 0:01:10]} 25. Rd1 {[%clk 0:00:08]}  Rb1 {[%clk 0:01:06]} 26. Red2 {[%clk 0:00:06]}  Ba4 {[%clk 0:00:48]} 27. Re1 {[%clk 0:00:01]}  Raa1 {[%clk 0:00:49]} 28. Nd3 {[%clk 0:00:01]}  Rxe1 {[%clk 0:00:49]} 29. Nxe1 {[%clk 0:00:02]}  Rxe1 {[%clk 0:00:49]} 30. Ra2 {[%clk 0:00:03]}  Bd1 {[%clk 0:00:48]} 31. Bxd1 {[%clk 0:00:02]}  Rxd1 {[%clk 0:00:48]} 32. Rxa7 {[%clk 0:00:02]}  Rd2 {[%clk 0:00:49]} 33. Kg1 {[%clk 0:00:02]}  Rxf2 {[%clk 0:00:47]} 34. Rd7 {[%clk 0:00:01]}  Rc2 {[%clk 0:00:44]} 35. Rxd6 {[%clk 0:00:01]}  Rxc4 {[%clk 0:00:45]} 36. Rd8+ {[%clk 0:00:01]}  Kh7 {[%clk 0:00:45]} 37. Rd7 {[%clk 0:00:02]}  Rc1+ {[%clk 0:00:43]} 38. Kg2 {[%clk 0:00:01]}  Rc2+ {[%clk 0:00:44]} 39. Kg1 {[%clk 0:00:01]}  f6 {[%clk 0:00:44]} 40. Rd6 {[%clk 0:00:01]}  Kg6 {[%clk 0:00:44]} 41. Rd7 {[%clk 0:00:01]}  Re2 {[%clk 0:00:43]} 42. Kf1 {[%clk 0:00:01]}  Rxe4 {[%clk 0:00:43]} 43. Kg1 {[%clk 0:00:02]}  Re3 {[%clk 0:00:43]} 44. Kg2 {[%clk 0:00:02]}  Re2+ {[%clk 0:00:43]} 45. Kf3 {[%clk 0:00:02]}  Rf2+ {[%clk 0:00:41]} 46. Ke4 {[%clk 0:00:03]}  Rf1 {[%clk 0:00:31]} 47. Kd5 {[%clk 0:00:02]}  d3 {[%clk 0:00:30]} 48. Ke6 {[%clk 0:00:03]}  e4 {[%clk 0:00:26]} 49. Ke7 {[%clk 0:00:02]}  Ne5 {[%clk 0:00:22]} 50. Ra7 {[%clk 0:00:02]}  Nc6+ {[%clk 0:00:22]} 51. Kd6 {[%clk 0:00:00]}  Nxa7 {[%clk 0:00:23]} 0-1


[Site "https://www.chess.com"]

[Event "Titled Tuesday Blitz November 07 Early 2023"]
[White "Perez Gormaz, Matias"]
[Black "Tikhonov, Viacheslav"]
[WhiteFideId "3406342"]
[BlackFideId "44196407"]
[WhiteElo "2728"]
[BlackElo "2532"]
[Result "1/2-1/2"]
[Round "4"]
[TimeControl "180+1"]
[Date "2023.11.07"]
[WhiteClock "0:00:04"]
[BlackClock "0:00:33"]
[Board "74"]

1. d4 {[%clk 0:03:00]}  d5 {[%clk 0:02:58]} 2. Bf4 {[%clk 0:03:01]}  Nf6 {[%clk 0:02:57]} 3. e3 {[%clk 0:03:01]}  c6 {[%clk 0:02:57]} 4. c4 {[%clk 0:03:01]}  e6 {[%clk 0:02:57]} 5. Nc3 {[%clk 0:03:01]}  Bd6 {[%clk 0:02:57]} 6. Bg3 {[%clk 0:02:52]}  O-O {[%clk 0:02:56]} 7. Nf3 {[%clk 0:02:51]}  Bxg3 {[%clk 0:02:55]} 8. hxg3 {[%clk 0:02:51]}  h6 {[%clk 0:02:56]} 9. Bd3 {[%clk 0:02:49]}  Nbd7 {[%clk 0:02:56]} 10. O-O {[%clk 0:02:40]}  Re8 {[%clk 0:02:54]} 11. e4 {[%clk 0:02:40]}  dxe4 {[%clk 0:02:53]} 12. Nxe4 {[%clk 0:02:40]}  Nxe4 {[%clk 0:02:54]} 13. Bxe4 {[%clk 0:02:41]}  Nf6 {[%clk 0:02:54]} 14. Bc2 {[%clk 0:02:40]}  Qc7 {[%clk 0:02:54]} 15. Qd3 {[%clk 0:02:39]}  c5 {[%clk 0:02:53]} 16. Rad1 {[%clk 0:02:36]}  b6 {[%clk 0:02:46]} 17. dxc5 {[%clk 0:02:33]}  Qxc5 {[%clk 0:02:44]} 18. Ba4 {[%clk 0:02:13]}  Rf8 {[%clk 0:02:24]} 19. Qd4 {[%clk 0:02:12]}  Qxd4 {[%clk 0:02:22]} 20. Nxd4 {[%clk 0:02:11]}  Bb7 {[%clk 0:02:19]} 21. Bc6 {[%clk 0:02:09]}  Rab8 {[%clk 0:02:17]} 22. b4 {[%clk 0:01:52]}  Rfc8 {[%clk 0:02:15]} 23. b5 {[%clk 0:01:49]}  Bxc6 {[%clk 0:02:10]} 24. Nxc6 {[%clk 0:01:49]}  Rb7 {[%clk 0:02:10]} 25. Rd2 {[%clk 0:01:48]}  Ne4 {[%clk 0:02:09]} 26. Rd4 {[%clk 0:01:46]}  Nc5 {[%clk 0:02:09]} 27. Rfd1 {[%clk 0:01:46]}  Kh7 {[%clk 0:02:08]} 28. f3 {[%clk 0:01:45]}  Rbc7 {[%clk 0:02:06]} 29. g4 {[%clk 0:01:43]}  a6 {[%clk 0:02:06]} 30. Rd8 {[%clk 0:01:37]}  Rxd8 {[%clk 0:02:06]} 31. Rxd8 {[%clk 0:01:36]}  axb5 {[%clk 0:02:06]} 32. cxb5 {[%clk 0:01:36]}  Na4 {[%clk 0:01:59]} 33. Ra8 {[%clk 0:01:31]}  Nc3 {[%clk 0:01:57]} 34. a4 {[%clk 0:01:31]}  Rd7 {[%clk 0:01:55]} 35. Kf2 {[%clk 0:01:30]}  Rd2+ {[%clk 0:01:51]} 36. Kf1 {[%clk 0:00:53]}  Nd5 {[%clk 0:01:48]} 37. g3 {[%clk 0:00:37]}  Ra2 {[%clk 0:01:45]} 38. a5 {[%clk 0:00:25]}  bxa5 {[%clk 0:01:44]} 39. Rxa5 {[%clk 0:00:25]}  Rb2 {[%clk 0:01:42]} 40. Ra7 {[%clk 0:00:26]}  f5 {[%clk 0:01:28]} 41. gxf5 {[%clk 0:00:21]}  exf5 {[%clk 0:01:28]} 42. Nd4 {[%clk 0:00:21]}  f4 {[%clk 0:01:26]} 43. gxf4 {[%clk 0:00:19]}  Nxf4 {[%clk 0:01:23]} 44. Nf5 {[%clk 0:00:15]}  Rxb5 {[%clk 0:01:23]} 45. Nxg7 {[%clk 0:00:14]}  Kg6 {[%clk 0:01:22]} 46. Ne8 {[%clk 0:00:13]}  h5 {[%clk 0:01:18]} 47. Nd6 {[%clk 0:00:10]}  Rb2 {[%clk 0:01:16]} 48. Nc4 {[%clk 0:00:09]}  Rc2 {[%clk 0:01:14]} 49. Ne3 {[%clk 0:00:09]}  Rb2 {[%clk 0:01:12]} 50. Nc4 {[%clk 0:00:08]}  Rc2 {[%clk 0:00:47]} 51. Ne3 {[%clk 0:00:08]}  Rc3 {[%clk 0:00:47]} 52. Kf2 {[%clk 0:00:06]}  h4 {[%clk 0:00:42]} 53. Ra6+ {[%clk 0:00:03]}  Kf7 {[%clk 0:00:41]} 54. Ra7+ {[%clk 0:00:04]}  Ke8 {[%clk 0:00:40]} 55. Ra8+ {[%clk 0:00:04]}  Kd7 {[%clk 0:00:40]} 56. Ra7+ {[%clk 0:00:04]}  Ke8 {[%clk 0:00:35]} 57. Ra8+ {[%clk 0:00:04]}  Kd7 {[%clk 0:00:36]} 58. Ra7+ {[%clk 0:00:04]}  Ke8 {[%clk 0:00:33]} 1/2-1/2


[Site "https://www.chess.com"]

[Event "Titled Tuesday Blitz November 07 Early 2023"]
[White "Slade, Theodore"]
[Black "Kourkoulos-Arditis, Stamatis"]
[WhiteFideId "426547"]
[BlackFideId "4221990"]
[WhiteElo "2531"]
[BlackElo "2725"]
[Result "1-0"]
[Round "4"]
[TimeControl "180+1"]
[Date "2023.11.07"]
[WhiteClock "0:00:13"]
[BlackClock "0:00:00"]
[Board "75"]

1. d4 {[%clk 0:03:00]}  Nf6 {[%clk 0:02:55]} 2. c4 {[%clk 0:03:00]}  e6 {[%clk 0:02:55]} 3. g3 {[%clk 0:03:01]}  Bb4+ {[%clk 0:02:51]} 4. Nd2 {[%clk 0:03:01]}  a5 {[%clk 0:02:51]} 5. Bg2 {[%clk 0:03:00]}  d6 {[%clk 0:02:50]} 6. Nf3 {[%clk 0:02:57]}  Nbd7 {[%clk 0:02:48]} 7. O-O {[%clk 0:02:58]}  Bxd2 {[%clk 0:02:40]} 8. Bxd2 {[%clk 0:02:58]}  O-O {[%clk 0:02:39]} 9. Qc2 {[%clk 0:02:56]}  Re8 {[%clk 0:02:37]} 10. e4 {[%clk 0:02:50]}  e5 {[%clk 0:02:37]} 11. Be3 {[%clk 0:02:31]}  exd4 {[%clk 0:02:21]} 12. Nxd4 {[%clk 0:02:31]}  Ng4 {[%clk 0:01:54]} 13. Bf4 {[%clk 0:02:29]}  Nc5 {[%clk 0:01:47]} 14. Rfe1 {[%clk 0:02:20]}  g5 {[%clk 0:01:41]} 15. Bd2 {[%clk 0:02:18]}  Qf6 {[%clk 0:01:31]} 16. Bc3 {[%clk 0:02:14]}  Ne5 {[%clk 0:01:14]} 17. f4 {[%clk 0:01:53]}  gxf4 {[%clk 0:01:11]} 18. Rf1 {[%clk 0:01:44]}  f3 {[%clk 0:01:04]} 19. Nxf3 {[%clk 0:01:43]}  Qh6 {[%clk 0:00:47]} 20. Nxe5 {[%clk 0:01:00]}  dxe5 {[%clk 0:00:48]} 21. Qf2 {[%clk 0:00:55]}  Qf8 {[%clk 0:00:41]} 22. Qf6 {[%clk 0:00:51]}  Ra6 {[%clk 0:00:40]} 23. Qh4 {[%clk 0:00:43]}  Rg6 {[%clk 0:00:39]} 24. Rf3 {[%clk 0:00:35]}  Qg7 {[%clk 0:00:38]} 25. Raf1 {[%clk 0:00:33]}  Be6 {[%clk 0:00:38]} 26. b3 {[%clk 0:00:26]}  Rh6 {[%clk 0:00:38]} 27. Bxe5 {[%clk 0:00:18]}  Rxh4 {[%clk 0:00:26]} 28. Bxg7 {[%clk 0:00:19]}  Rxe4 {[%clk 0:00:26]} 29. Bf6 {[%clk 0:00:19]}  Re2 {[%clk 0:00:24]} 30. R3f2 {[%clk 0:00:19]}  Bc8 {[%clk 0:00:16]} 31. Bd4 {[%clk 0:00:17]}  Rxf2 {[%clk 0:00:12]} 32. Bxf2 {[%clk 0:00:14]}  Nd3 {[%clk 0:00:11]} 33. Bd4 {[%clk 0:00:14]}  c5 {[%clk 0:00:09]} 34. Bc3 {[%clk 0:00:12]}  b6 {[%clk 0:00:09]} 35. Bd5 {[%clk 0:00:13]}  Be6 {[%clk 0:00:08]} 36. Rf3 {[%clk 0:00:12]}  Ne5 {[%clk 0:00:04]} 37. Bxe5 {[%clk 0:00:11]}  Bxd5 {[%clk 0:00:05]} 38. Rf5 {[%clk 0:00:07]}  Be4 {[%clk 0:00:03]} 39. Rg5+ {[%clk 0:00:06]}  Bg6 {[%clk 0:00:03]} 40. Bc7 {[%clk 0:00:06]}  Re6 {[%clk 0:00:02]} 41. Re5 {[%clk 0:00:06]}  Rxe5 {[%clk 0:00:02]} 42. Bxe5 {[%clk 0:00:06]}  Bb1 {[%clk 0:00:03]} 43. a3 {[%clk 0:00:05]}  Ba2 {[%clk 0:00:03]} 44. Bc7 {[%clk 0:00:05]}  Bxb3 {[%clk 0:00:03]} 45. Bxb6 {[%clk 0:00:06]}  Bxc4 {[%clk 0:00:03]} 46. Bxc5 {[%clk 0:00:07]}  a4 {[%clk 0:00:03]} 47. Kf2 {[%clk 0:00:07]}  f5 {[%clk 0:00:04]} 48. Ke3 {[%clk 0:00:07]}  Kf7 {[%clk 0:00:05]} 49. Kf4 {[%clk 0:00:08]}  Ke6 {[%clk 0:00:05]} 50. Bd4 {[%clk 0:00:08]}  Bd3 {[%clk 0:00:04]} 51. Be5 {[%clk 0:00:09]}  Kd5 {[%clk 0:00:04]} 52. Bc3 {[%clk 0:00:09]}  Ke6 {[%clk 0:00:05]} 53. Bb4 {[%clk 0:00:10]}  Bc2 {[%clk 0:00:05]} 54. h4 {[%clk 0:00:10]}  Kf6 {[%clk 0:00:05]} 55. Bc3+ {[%clk 0:00:10]}  Kg6 {[%clk 0:00:06]} 56. Bb4 {[%clk 0:00:11]}  Kh5 {[%clk 0:00:06]} 57. Bc3 {[%clk 0:00:11]}  Kg6 {[%clk 0:00:07]} 58. Bb4 {[%clk 0:00:11]}  Kh5 {[%clk 0:00:07]} 59. Ke5 {[%clk 0:00:12]}  Kg4 {[%clk 0:00:07]} 60. Be1 {[%clk 0:00:11]}  Kf3 {[%clk 0:00:08]} 61. Kf6 {[%clk 0:00:11]}  Ke2 {[%clk 0:00:06]} 62. Bb4 {[%clk 0:00:11]}  Kf2 {[%clk 0:00:06]} 63. Bd6 {[%clk 0:00:12]}  Kf3 {[%clk 0:00:06]} 64. Kg5 {[%clk 0:00:12]}  Kg2 {[%clk 0:00:06]} 65. Kh6 {[%clk 0:00:12]}  Kh3 {[%clk 0:00:05]} 66. Bf4 {[%clk 0:00:12]}  Kg4 {[%clk 0:00:04]} 67. Kxh7 {[%clk 0:00:13]}  Bb3 {[%clk 0:00:04]} 68. Kg6 {[%clk 0:00:12]}  Bd5 {[%clk 0:00:00]} 69. h5 {[%clk 0:00:13]} 1-0


[Site "https://www.chess.com"]

[Event "Titled Tuesday Blitz November 07 Early 2023"]
[White "Alinasab, Mobina"]
[Black "Smirnov, Pavel"]
[WhiteFideId "12528897"]
[BlackFideId "4123425"]
[WhiteElo "2531"]
[BlackElo "2719"]
[Result "0-1"]
[Round "4"]
[TimeControl "180+1"]
[Date "2023.11.07"]
[WhiteClock "0:00:03"]
[BlackClock "0:00:09"]
[Board "76"]

1. e4 {[%clk 0:03:00]}  e5 {[%clk 0:02:59]} 2. Bc4 {[%clk 0:03:00]}  Nf6 {[%clk 0:02:57]} 3. Nc3 {[%clk 0:02:59]}  Nxe4 {[%clk 0:02:55]} 4. Qh5 {[%clk 0:02:59]}  Nd6 {[%clk 0:02:54]} 5. Bb3 {[%clk 0:02:59]}  Be7 {[%clk 0:02:54]} 6. Qxe5 {[%clk 0:02:58]}  O-O {[%clk 0:02:52]} 7. Nf3 {[%clk 0:02:58]}  Nc6 {[%clk 0:02:53]} 8. Qf4 {[%clk 0:02:57]}  Na5 {[%clk 0:02:53]} 9. O-O {[%clk 0:02:57]}  Nxb3 {[%clk 0:02:51]} 10. axb3 {[%clk 0:02:58]}  b6 {[%clk 0:02:46]} 11. Nd5 {[%clk 0:02:54]}  Bb7 {[%clk 0:02:44]} 12. Nxe7+ {[%clk 0:02:54]}  Qxe7 {[%clk 0:02:44]} 13. d4 {[%clk 0:02:55]}  Qe4 {[%clk 0:02:40]} 14. c4 {[%clk 0:02:31]}  Qc2 {[%clk 0:02:29]} 15. Ne5 {[%clk 0:01:34]}  f6 {[%clk 0:02:15]} 16. Ng4 {[%clk 0:01:09]}  Qxb3 {[%clk 0:02:13]} 17. c5 {[%clk 0:01:10]}  Nb5 {[%clk 0:02:11]} 18. Be3 {[%clk 0:01:03]}  Qd5 {[%clk 0:02:10]} 19. f3 {[%clk 0:01:01]}  h5 {[%clk 0:02:01]} 20. Nf2 {[%clk 0:01:00]}  Rae8 {[%clk 0:01:59]} 21. Rfe1 {[%clk 0:00:55]}  Qb3 {[%clk 0:01:51]} 22. Nh3 {[%clk 0:00:46]}  Qxb2 {[%clk 0:01:46]} 23. Rab1 {[%clk 0:00:41]}  Qc3 {[%clk 0:01:45]} 24. Bf2 {[%clk 0:00:35]}  Na3 {[%clk 0:01:40]} 25. Rbc1 {[%clk 0:00:30]}  Rxe1+ {[%clk 0:01:24]} 26. Bxe1 {[%clk 0:00:29]}  Qb2 {[%clk 0:01:17]} 27. Bc3 {[%clk 0:00:28]}  Qb3 {[%clk 0:01:14]} 28. Qxc7 {[%clk 0:00:27]}  Nb5 {[%clk 0:01:07]} 29. Qxb7 {[%clk 0:00:24]}  Nxc3 {[%clk 0:01:08]} 30. Re1 {[%clk 0:00:24]}  Qd5 {[%clk 0:00:59]} 31. Qxa7 {[%clk 0:00:14]}  Qxd4+ {[%clk 0:00:57]} 32. Kh1 {[%clk 0:00:14]}  bxc5 {[%clk 0:00:57]} 33. g3 {[%clk 0:00:10]}  Qd2 {[%clk 0:00:51]} 34. Rf1 {[%clk 0:00:07]}  Qd3 {[%clk 0:00:48]} 35. Qa1 {[%clk 0:00:06]}  d5 {[%clk 0:00:44]} 36. Nf4 {[%clk 0:00:06]}  Qd2 {[%clk 0:00:42]} 37. Nxh5 {[%clk 0:00:06]}  Rf7 {[%clk 0:00:28]} 38. Nf4 {[%clk 0:00:06]}  Kh7 {[%clk 0:00:25]} 39. Qa8 {[%clk 0:00:04]}  Re7 {[%clk 0:00:23]} 40. Qc8 {[%clk 0:00:05]}  Qe3 {[%clk 0:00:14]} 41. Qf5+ {[%clk 0:00:04]}  Kg8 {[%clk 0:00:14]} 42. Qc8+ {[%clk 0:00:05]}  Re8 {[%clk 0:00:13]} 43. Qg4 {[%clk 0:00:05]}  Qe5 {[%clk 0:00:12]} 44. Nh5 {[%clk 0:00:05]}  Qg5 {[%clk 0:00:12]} 45. Qh3 {[%clk 0:00:05]}  d4 {[%clk 0:00:11]} 46. Nf4 {[%clk 0:00:05]}  Qe5 {[%clk 0:00:09]} 47. Qd7 {[%clk 0:00:05]}  Qe7 {[%clk 0:00:07]} 48. Qf5 {[%clk 0:00:04]}  Rd8 {[%clk 0:00:07]} 49. Ra1 {[%clk 0:00:04]}  c4 {[%clk 0:00:06]} 50. Qa5 {[%clk 0:00:03]}  Qd7 {[%clk 0:00:05]} 51. Qb4 {[%clk 0:00:03]}  Kh7 {[%clk 0:00:04]} 52. Qxc4 {[%clk 0:00:02]}  g5 {[%clk 0:00:05]} 53. Qd3+ {[%clk 0:00:02]}  f5 {[%clk 0:00:05]} 54. Ne2 {[%clk 0:00:02]}  Nxe2 {[%clk 0:00:02]} 55. Qxe2 {[%clk 0:00:03]}  d3 {[%clk 0:00:03]} 56. Qd2 {[%clk 0:00:04]}  Qd4 {[%clk 0:00:03]} 57. Rd1 {[%clk 0:00:03]}  Kg6 {[%clk 0:00:03]} 58. Qc1 {[%clk 0:00:02]}  Re8 {[%clk 0:00:03]} 59. Qc6+ {[%clk 0:00:02]}  Kf7 {[%clk 0:00:03]} 60. Qc7+ {[%clk 0:00:02]}  Re7 {[%clk 0:00:03]} 61. Qc1 {[%clk 0:00:03]}  Re3 {[%clk 0:00:01]} 62. Qc7+ {[%clk 0:00:02]}  Kf6 {[%clk 0:00:02]} 63. Qc6+ {[%clk 0:00:03]}  Kf7 {[%clk 0:00:02]} 64. Qb7+ {[%clk 0:00:03]}  Kg6 {[%clk 0:00:03]} 65. Qa6+ {[%clk 0:00:03]}  Kh5 {[%clk 0:00:03]} 66. Qc8 {[%clk 0:00:03]}  Rxf3 {[%clk 0:00:03]} 67. Qe8+ {[%clk 0:00:03]}  Kg4 {[%clk 0:00:04]} 68. Qe1 {[%clk 0:00:03]}  Qe4 {[%clk 0:00:03]} 69. Qxe4+ {[%clk 0:00:01]}  fxe4 {[%clk 0:00:04]} 70. Kg2 {[%clk 0:00:02]}  Re3 {[%clk 0:00:04]} 71. Rd2 {[%clk 0:00:02]}  Re2+ {[%clk 0:00:03]} 72. Rxe2 {[%clk 0:00:02]}  dxe2 {[%clk 0:00:04]} 73. Kf2 {[%clk 0:00:03]}  Kh3 {[%clk 0:00:04]} 74. Kxe2 {[%clk 0:00:02]}  Kxh2 {[%clk 0:00:05]} 75. Kf2 {[%clk 0:00:02]}  Kh3 {[%clk 0:00:05]} 76. g4 {[%clk 0:00:01]}  Kxg4 {[%clk 0:00:05]} 77. Kg2 {[%clk 0:00:02]}  Kf4 {[%clk 0:00:05]} 78. Kf2 {[%clk 0:00:02]}  e3+ {[%clk 0:00:06]} 79. Ke2 {[%clk 0:00:02]}  Ke4 {[%clk 0:00:07]} 80. Ke1 {[%clk 0:00:02]}  Kf3 {[%clk 0:00:08]} 81. Kf1 {[%clk 0:00:03]}  e2+ {[%clk 0:00:08]} 82. Ke1 {[%clk 0:00:03]}  g4 {[%clk 0:00:09]} 0-1


[Site "https://www.chess.com"]

[Event "Titled Tuesday Blitz November 07 Early 2023"]
[White "Ronka, Erik"]
[Black "Wagner, Dennis"]
[WhiteFideId "505080"]
[BlackFideId "24650684"]
[WhiteElo "2526"]
[BlackElo "2718"]
[Result "1/2-1/2"]
[Round "4"]
[TimeControl "180+1"]
[Date "2023.11.07"]
[WhiteClock "0:01:11"]
[BlackClock "0:01:58"]
[Board "77"]

1. e4 {[%clk 0:03:00]}  e5 {[%clk 0:02:59]} 2. Nf3 {[%clk 0:03:01]}  Nc6 {[%clk 0:02:55]} 3. Bb5 {[%clk 0:02:56]}  a6 {[%clk 0:02:55]} 4. Ba4 {[%clk 0:02:56]}  Nf6 {[%clk 0:02:56]} 5. O-O {[%clk 0:02:56]}  Be7 {[%clk 0:02:51]} 6. Re1 {[%clk 0:02:56]}  b5 {[%clk 0:02:51]} 7. Bb3 {[%clk 0:02:56]}  O-O {[%clk 0:02:52]} 8. a4 {[%clk 0:02:56]}  b4 {[%clk 0:02:52]} 9. d4 {[%clk 0:02:56]}  d6 {[%clk 0:02:52]} 10. dxe5 {[%clk 0:02:55]}  Nxe5 {[%clk 0:02:53]} 11. Nxe5 {[%clk 0:02:55]}  dxe5 {[%clk 0:02:53]} 12. Qe2 {[%clk 0:02:55]}  a5 {[%clk 0:02:49]} 13. Bg5 {[%clk 0:02:22]}  h6 {[%clk 0:02:31]} 14. Bxf6 {[%clk 0:02:20]}  Bxf6 {[%clk 0:02:31]} 15. Nd2 {[%clk 0:02:19]}  Qd4 {[%clk 0:02:30]} 16. Rab1 {[%clk 0:02:16]}  Ba6 {[%clk 0:02:14]} 17. Bc4 {[%clk 0:02:14]}  Rfd8 {[%clk 0:02:11]} 18. Bxa6 {[%clk 0:01:41]}  Qxd2 {[%clk 0:02:10]} 19. Rbd1 {[%clk 0:01:34]}  Qxe2 {[%clk 0:02:05]} 20. Bxe2 {[%clk 0:01:35]}  Bg5 {[%clk 0:02:01]} 21. Rxd8+ {[%clk 0:01:21]}  Rxd8 {[%clk 0:02:02]} 22. Rd1 {[%clk 0:01:21]}  Rxd1+ {[%clk 0:02:02]} 23. Bxd1 {[%clk 0:01:22]}  Bc1 {[%clk 0:02:03]} 24. b3 {[%clk 0:01:22]}  Kf8 {[%clk 0:02:03]} 25. Kf1 {[%clk 0:01:19]}  Ke7 {[%clk 0:02:04]} 26. Ke2 {[%clk 0:01:19]}  Kd6 {[%clk 0:02:05]} 27. Kd3 {[%clk 0:01:19]}  Kc5 {[%clk 0:02:06]} 28. Bg4 {[%clk 0:01:17]}  Bb2 {[%clk 0:02:06]} 29. Bd7 {[%clk 0:01:16]}  Bd4 {[%clk 0:02:06]} 30. f3 {[%clk 0:01:15]}  Bg1 {[%clk 0:02:06]} 31. h3 {[%clk 0:01:15]}  Bh2 {[%clk 0:02:07]} 32. Be8 {[%clk 0:01:15]}  f6 {[%clk 0:02:07]} 33. Bf7 {[%clk 0:01:15]}  Bg3 {[%clk 0:02:06]} 34. Bg8 {[%clk 0:01:15]}  Bf2 {[%clk 0:02:03]} 35. Bf7 {[%clk 0:01:15]}  g5 {[%clk 0:01:58]} 36. Bg6 {[%clk 0:01:11]}  Bd4 {[%clk 0:01:57]} 37. Bf7 {[%clk 0:01:11]}  Bc3 {[%clk 0:01:56]} 38. Bg6 {[%clk 0:01:10]}  Bd4 {[%clk 0:01:57]} 39. Bf7 {[%clk 0:01:10]}  Bc3 {[%clk 0:01:57]} 40. Bg6 {[%clk 0:01:11]}  Bd4 {[%clk 0:01:58]} 1/2-1/2


[Site "https://www.chess.com"]